bitfinex/quotes_SOLUSD_20250416
["timestamp","ask_amount","ask_price","bid_price","bid_amount"]
[1744780397680,18.57108275,126.37,126.32,35.09094248]
[1744780397976,9.09094248,126.35,126.32,26.0]
[1744780398375,9.09094248,126.36,126.32,26.0]
[1744780398780,17.00546562,126.35,126.32,26.0]
[1744780398971,9.09094248,126.34,126.32,26.0]
[1744780400672,17.00546562,126.35,126.32,26.0]
[1744780406294,7.91452314,126.35,126.32,26.0]
[1744780407196,17.00546562,126.35,126.32,26.0]
[1744780407375,17.00483928,126.36,126.32,26.0]
[1744780409890,9.09094248,126.35,126.32,26.0]
[1744780410700,17.00583656,126.35,126.32,26.0]
[1744780413095,7.91489408,126.35,126.32,26.0]
[1744780413402,9.09094248,126.33,126.29,0.063]
[1744780413605,9.09094248,126.32,126.29,0.063]
[1744780414393,7.91650313,126.32,126.29,0.063]
[1744780415795,17.00744561,126.32,126.29,0.063]
[1744780416381,7.91650313,126.32,126.29,0.063]
[1744780417229,17.00744561,126.32,126.29,0.063]
[1744780417897,7.91650313,126.32,126.29,0.063]
[1744780422025,9.41844095,126.33,126.29,0.063]
[1744780422323,9.41844095,126.33,126.29,9.15394248]
[1744780425914,9.41844095,126.33,126.29,0.063]
[1744780427920,18.50938343,126.33,126.29,0.063]
[1744780431017,9.41844095,126.33,126.29,9.15394248]
[1744780432828,7.91604095,126.33,126.29,9.15394248]
[1744780435424,7.91604095,126.33,126.29,0.063]
[1744780435615,17.00698343,126.33,126.29,0.063]
[1744780436123,36.79642378,126.33,126.29,0.063]
[1744780442716,9.09094248,126.32,126.29,0.063]
[1744780443803,7.91702953,126.31,126.29,0.063]
[1744780446910,17.00797201,126.31,126.29,0.063]
[1744780447211,9.09094248,126.3,126.29,0.063]
[1744780447725,27.74059134,126.3,126.29,0.063]
[1744780448721,35.65824771,126.3,126.29,0.063]
[1744780451522,7.91765637,126.3,126.29,0.063]
[1744780453519,36.9,126.34,126.29,9.15394248]
[1744780453721,7.91577614,126.33,126.29,9.15394248]
[1744780455634,17.00671862,126.33,126.29,0.063]
[1744780457532,9.09094248,126.31,126.29,0.063]
[1744780458721,9.09094248,126.3,126.29,0.063]
[1744780459451,17.00859885,126.3,126.29,0.063]
[1744780461631,46.3570586,126.32,126.29,0.063]
[1744780461939,9.09094248,126.31,126.29,0.063]
[1744780462341,27.70740974,126.32,126.29,0.063]
[1744780462549,36.79835222,126.32,126.29,0.063]
[1744780464041,9.09094248,126.31,126.29,0.063]
[1744780464232,9.09094248,126.3,126.29,0.063]
[1744780465243,17.00859885,126.3,126.29,0.063]
[1744780479549,7.91765637,126.3,126.29,0.063]
[1744780480155,10.9,126.32,126.29,0.063]
[1744780481052,18.81659052,126.32,126.29,0.063]
[1744780483154,28.87885932,126.34,126.29,0.063]
[1744780483155,7.91577614,126.33,126.29,0.063]
[1744780483358,7.91577614,126.33,126.3,9.09094248]
[1744780483535,9.09094248,126.35,126.31,9.09094248]
[1744780483536,7.91452314,126.35,126.31,9.09094248]
[1744780484767,7.91452314,126.35,126.3,9.09094248]
[1744780486756,17.00546562,126.35,126.3,9.09094248]
[1744780489363,17.00546562,126.35,126.3,17.00851102]
[1744780490557,17.00546562,126.35,126.3,9.09094248]
[1744780490743,7.91452314,126.35,126.3,9.09094248]
[1744780491042,17.00546562,126.35,126.3,9.09094248]
[1744780494263,7.91452314,126.35,126.3,9.09094248]
[1744780495273,7.91452314,126.35,126.3,17.0085935]
[1744780495456,7.91452314,126.35,126.3,9.09094248]
[1744780495771,17.00546562,126.35,126.3,9.09094248]
[1744780499668,17.00546562,126.35,126.29,9.48748644]
[1744780499846,17.00546562,126.35,126.3,9.09094248]
[1744780500967,36.79177349,126.35,126.29,10.66044248]
[1744780501172,9.09094248,126.33,126.29,1.5695]
[1744780501364,9.09094248,126.32,126.29,0.063]
[1744780501751,9.09094248,126.33,126.29,0.063]
[1744780502669,9.09094248,126.3,126.29,0.063]
[1744780505374,17.00859885,126.3,126.29,0.063]
[1744780510380,35.65824771,126.3,126.29,0.063]
[1744780511175,18.64964886,126.28,126.27,0.063]
[1744780511373,72.02327161,126.28,126.27,0.063]
[1744780511551,35.65950169,126.28,126.27,0.063]
[1744780515277,17.00985283,126.28,126.27,0.063]
[1744780515475,35.65950169,126.28,126.27,0.063]
[1744780517285,72.02327161,126.28,126.27,0.063]
[1744780519385,35.65950169,126.28,126.27,0.063]
[1744780525069,72.16543318,126.28,126.27,0.063]
[1744780526284,83.06543318,126.28,126.27,0.063]
[1744780527675,82.92327161,126.28,126.27,0.063]
[1744780527991,46.55950169,126.28,126.27,0.063]
[1744780531995,83.06543318,126.28,126.27,0.063]
[1744780532201,93.89663841,126.28,126.27,0.063]
[1744780532697,44.64964886,126.27,126.26,0.063]
[1744780532898,0.14216157,126.26,126.24,0.063]
[1744780533089,55.23310405,126.25,126.24,0.063]
[1744780533288,61.6599624,126.25,126.24,0.063]
[1744780533592,55.23310405,126.25,126.24,0.063]
[1744780534288,92.63475021,126.25,126.24,1e-08]
[1744780536098,72.49258864,126.25,126.24,1e-08]
[1744780536277,17.01173455,126.25,126.24,1e-08]
[1744780536484,7.92079207,126.25,126.24,1e-08]
[1744780541210,18.82044607,126.26,126.24,1e-08]
[1744780541625,10.9,126.26,126.24,1e-08]
[1744780541929,7.91891035,126.28,126.24,9.09094249]
[1744780542099,7.91891035,126.28,126.25,9.09094248]
[1744780543798,7.91828331,126.29,126.25,9.09094248]
[1744780545220,18.81794755,126.3,126.26,9.09094248]
[1744780545526,18.81794755,126.3,126.27,9.09094248]
[1744780548427,18.81794755,126.3,126.26,10.71754248]
[1744780561328,7.91702953,126.31,126.27,9.09094248]
[1744780561723,7.91666746,126.32,126.29,35.09094248]
[1744780562143,7.91666746,126.32,126.29,26.0]
[1744780565960,17.00760994,126.32,126.26,1.6266]
[1744780566169,9.09094248,126.3,126.26,1.6266]
[1744780566451,9.09094248,126.3,126.26,26.0]
[1744780567054,7.91828331,126.29,126.26,26.0]
[1744780575268,7.91828331,126.29,126.25,15.27814248]
[1744780575469,7.91828331,126.29,126.25,32.1872]
[1744780576180,9.09094248,126.27,126.24,1e-08]
[1744780576471,9.09094248,126.25,126.24,1e-08]
[1744780577577,9.09094248,126.27,126.24,1e-08]
[1744780578148,7.92016473,126.26,126.24,1e-08]
[1744780581589,7.91891035,126.28,126.25,9.09094248]
[1744780581873,7.91828331,126.29,126.26,9.09094248]
[1744780583478,7.91765637,126.3,126.26,9.09094248]
[1744780590286,7.91702953,126.31,126.26,9.09094248]
[1744780590582,17.00797201,126.31,126.26,9.09094248]
[1744780590891,7.91702953,126.31,126.27,9.09094248]
[1744780591061,0.03,126.34,126.3,9.09094248]
[1744780591261,0.03,126.34,126.31,9.09094248]
[1744780592285,7.94514959,126.34,126.31,9.09094248]
[1744780592483,7.94514959,126.34,126.3,9.09094248]
[1744780595786,7.94514959,126.34,126.32,9.09094248]
[1744780595787,0.03,126.34,126.32,9.09094248]
[1744780596971,0.03,126.34,126.33,9.09094248]
[1744780598688,0.03,126.34,126.32,41.25654248]
[1744780599188,0.03,126.34,126.32,26.0]
[1744780600788,0.03,126.34,126.3,9.09094248]
[1744780601088,0.03,126.34,126.31,26.0]
[1744780603679,9.12094248,126.34,126.31,26.0]
[1744780604185,0.03,126.34,126.31,26.0]
[1744780605094,0.03,126.34,126.33,9.09094248]
[1744780607589,0.03,126.34,126.33,17.00671862]
[1744780609396,0.03,126.34,126.33,17.14888019]
[1744780609585,0.03,126.34,126.33,42.23592905]
[1744780610082,0.03,126.34,126.33,68.23592905]
[1744780610285,0.03,126.34,126.33,53.09592905]
[1744780610680,0.03,126.35,126.34,0.14216157]
[1744780610893,0.03,126.35,126.34,45.59687397]
[1744780611274,0.03,126.36,126.34,64.24652283]
[1744780611475,0.03,126.36,126.35,79.51139711]
[1744780612883,0.03,126.36,126.35,72.16104597]
[1744780613404,0.03,126.38,126.36,18.79181043]
[1744780613701,0.03,126.38,126.37,9.23310405]
[1744780614399,0.03,126.38,126.37,17.1463746]
[1744780614705,0.03,126.4,126.39,26.0]
[1744780614996,0.03,126.4,126.39,9.23310405]
[1744780615208,0.03,126.4,126.39,26.14216157]
[1744780615581,0.03,126.4,126.39,26.0]
[1744780615981,0.03,126.4,126.39,35.09094248]
[1744780618289,0.03,126.4,126.39,35.23310405]
[1744780618493,0.03,126.4,126.39,53.88275291]
[1744780618691,0.03,126.4,126.39,61.79477126]
[1744780619083,0.03,126.4,126.39,35.79477126]
[1744780622207,1.6132,126.49,126.43,18.64964886]
[1744780622389,0.03,126.49,126.46,9.23310405]
[1744780622709,0.03,126.49,126.47,0.14216157]
[1744780622883,0.03,126.49,126.48,27.74059134]
[1744780623088,0.03,126.49,126.48,9.23310405]
[1744780623287,0.03,126.49,126.48,14.31022154]
[1744780624194,23.67310211,126.59,126.51,26.0]
[1744780624396,14.16805997,126.57,126.52,14.16805997]
[1744780624594,14.16805997,126.56,126.51,14.16805997]
[1744780624801,14.16805997,126.56,126.5,40.16805997]
[1744780625189,14.16805997,126.56,126.51,14.16805997]
[1744780625399,40.11383746,126.59,126.51,14.16805997]
[1744780625598,20.36504214,126.59,126.53,14.31022154]
[1744780625789,20.36504214,126.59,126.55,14.16805997]
[1744780625790,12.4653,126.59,126.55,14.16805997]
[1744780625982,20.36482951,126.59,126.55,14.16805997]
[1744780626183,26.63335997,126.59,126.54,14.16805997]
[1744780627292,34.53300322,126.59,126.54,14.16805997]
[1744780627611,20.36494325,126.59,126.55,14.16805997]
[1744780629301,1.6053,126.59,126.55,14.16805997]
[1744780629612,1.6053,126.59,126.55,22.06997129]
[1744780630106,1.6053,126.59,126.56,14.16805997]
[1744780630585,9.50491384,126.59,126.55,26.0]
[1744780631090,9.50491384,126.59,126.55,40.16805997]
[1744780631392,9.50491384,126.59,126.55,14.16805997]
[1744780631597,9.50491384,126.59,126.54,14.16805997]
[1744780631903,14.16805997,126.58,126.52,37.00216157]
[1744780632106,14.16805997,126.56,126.52,10.86]
[1744780632806,22.06978321,126.56,126.52,10.86]
[1744780634905,22.06978321,126.56,126.52,25.02805997]
[1744780635096,7.90172324,126.56,126.52,10.86]
[1744780635407,7.90172324,126.56,126.52,25.02805997]
[1744780636791,7.9001422,126.58,126.53,14.16805997]
[1744780637003,22.06820217,126.58,126.53,14.16805997]
[1744780640917,7.9001422,126.58,126.54,14.16805997]
[1744780641314,22.06820217,126.58,126.53,40.16805997]
[1744780641702,7.9001422,126.58,126.54,14.16805997]
[1744780642322,9.50500639,126.59,126.56,14.16805997]
[1744780642713,23.67306636,126.59,126.54,14.16805997]
[1744780643616,14.16805997,126.58,126.53,40.16805997]
[1744780645520,7.90076637,126.57,126.52,10.86]
[1744780645705,14.16805997,126.56,126.52,40.16805997]
[1744780646105,22.06882634,126.57,126.52,40.16805997]
[1744780647730,7.90076637,126.57,126.54,14.16805997]
[1744780648034,7.90044181,126.58,126.55,14.16805997]
[1744780648206,7.90044181,126.58,126.54,14.16805997]
[1744780648410,7.90044181,126.58,126.53,0.14216157]
[1744780648611,22.06850178,126.58,126.53,14.16805997]
[1744780650540,7.90044181,126.58,126.52,40.16805997]
[1744780650727,1.5242,126.55,126.5,40.16805997]
[1744780651034,1.5242,126.55,126.51,14.16805997]
[1744780651426,1.5242,126.55,126.5,33.90498274]
[1744780651619,1.5242,126.55,126.5,48.07304271]
[1744780652119,1.5242,126.55,126.51,14.16805997]
[1744780652538,7.90263948,126.54,126.51,14.16805997]
[1744780656930,7.90263948,126.54,126.5,48.07303579]
[1744780657126,7.90263948,126.54,126.5,42.97170061]
[1744780657452,7.90263948,126.54,126.5,35.06672479]
[1744780657663,9.06672479,126.51,126.46,0.063]
[1744780657834,10.61672479,126.5,126.46,0.063]
[1744780658161,1.55,126.5,126.46,9.12972479]
[1744780658739,7.9057633,126.49,126.46,9.12972479]
[1744780659231,22.08333151,126.49,126.46,0.063]
[1744780659434,14.17756821,126.48,126.46,0.063]
[1744780659664,14.17756821,126.47,126.46,0.063]
[1744780660742,22.08458173,126.47,126.46,0.063]
[1744780662745,29.84528173,126.47,126.46,0.063]
[1744780663144,48.49493059,126.47,126.46,0.063]
[1744780663534,68.63709216,126.47,126.46,0.063]
[1744780663859,14.17756821,126.44,126.39,14.24056821]
[1744780664648,7.90951514,126.43,126.39,14.24056821]
[1744780664856,7.90951514,126.43,126.4,0.063]
[1744780665240,22.08708335,126.43,126.4,0.063]
[1744780670758,22.0883134,126.42,126.4,0.063]
[1744780671354,23.6074134,126.42,126.4,0.063]
[1744780672859,14.17756821,126.41,126.4,0.063]
[1744780674558,9.42984519,126.42,126.4,0.063]
[1744780674763,23.6074134,126.42,126.4,0.063]
[1744780675141,1.5191,126.42,126.4,0.063]
[1744780675537,9.42933615,126.42,126.4,0.063]
[1744780681276,22.08728116,126.43,126.4,0.063]
[1744780683075,7.90971295,126.43,126.4,0.063]
[1744780683762,16.99318207,126.43,126.4,0.063]
[1744780686187,9.08346912,126.41,126.4,0.063]
[1744780686758,10.64066912,126.41,126.4,0.063]
[1744780687455,18.55143567,126.41,126.4,0.063]
[1744780688186,18.77042004,126.42,126.4,0.063]
[1744780688357,7.90888959,126.44,126.4,9.14646912]
[1744780689281,7.90888959,126.44,126.4,14.25246529]
[1744780689586,1.5207,126.45,126.42,14.18946529]
[1744780689758,10.86,126.46,126.42,14.18946529]
[1744780690681,18.76791972,126.46,126.42,14.18946529]
[1744780693081,32.95738501,126.46,126.4,7.9743924]
[1744780693379,14.18946529,126.45,126.4,0.063]
[1744780693569,14.18946529,126.44,126.4,0.063]
[1744780693885,14.18946529,126.45,126.4,14.25246529]
[1744780694482,7.90888959,126.44,126.4,14.25246529]
[1744780695789,22.09835488,126.44,126.4,0.063]
[1744780696883,14.18946529,126.43,126.4,0.063]
[1744780698879,7.9101408,126.42,126.4,0.063]
[1744780700786,7.90951514,126.43,126.4,0.063]
[1744780704891,18.76794664,126.46,126.41,22.09988088]
[1744780705073,7.90729717,126.47,126.43,14.18946529]
[1744780705275,7.9057633,126.49,126.45,14.18946529]
[1744780705592,18.74545767,126.5,126.46,14.18946529]
[1744780706071,32.93492296,126.5,126.45,14.18946529]
[1744780706685,22.09492296,126.5,126.45,14.18946529]
[1744780707090,22.09492296,126.5,126.44,40.18946529]
[1744780707295,14.18946529,126.49,126.44,40.18946529]
[1744780707593,14.18946529,126.49,126.44,14.18946529]
[1744780707785,14.18946529,126.48,126.43,14.18946529]
[1744780708266,14.18946529,126.49,126.44,14.18946529]
[1744780709697,7.90638836,126.48,126.42,41.53710516]
[1744780709999,22.09585365,126.48,126.43,14.18946529]
[1744780710198,14.18946529,126.47,126.42,47.81666529]
[1744780710706,14.18946529,126.46,126.42,6.1113]
[1744780711988,7.90826413,126.45,126.42,6.1113]
[1744780714104,7.90826413,126.45,126.41,14.18946529]
[1744780714874,22.09772942,126.45,126.4,51.09246529]
[1744780716495,7.90826413,126.45,126.41,14.18946529]
[1744780717294,7.90790473,126.46,126.42,14.18946529]
[1744780718902,22.09737002,126.46,126.41,14.18946529]
[1744780719898,14.18946529,126.44,126.4,0.063]
[1744780720095,14.18946529,126.45,126.4,14.25246529]
[1744780720983,14.18946529,126.43,126.4,0.063]
[1744780721180,14.18946529,126.42,126.4,0.063]
[1744780721383,14.18946529,126.41,126.4,0.063]
[1744780723012,22.10023184,126.41,126.4,0.063]
[1744780727087,7.91076655,126.41,126.4,0.063]
[1744780731313,16.99767121,126.41,126.4,0.063]
[1744780736816,7.91076655,126.41,126.4,0.063]
[1744780737001,16.99767121,126.41,126.4,0.063]
[1744780739115,35.64732007,126.41,126.4,0.063]
[1744780741307,35.78948164,126.41,126.4,0.063]
[1744780742422,35.78948164,126.41,126.39,0.063]
[1744780742423,20.0,126.4,126.39,0.063]
[1744780742625,20.0,126.4,126.34,0.063]
[1744780742626,0.14216157,126.39,126.34,0.063]
[1744780743418,9.08690466,126.35,126.34,0.063]
[1744780743739,27.73655352,126.35,126.34,0.063]
[1744780743930,111.74493373,126.35,126.34,0.063]
[1744780744217,20.0,126.33,126.27,0.063]
[1744780744423,9.08690466,126.28,126.27,0.063]
[1744780745821,17.00581501,126.28,126.27,0.063]
[1744780746323,7.91891035,126.28,126.27,0.063]
[1744780747718,22.14626847,126.28,126.27,0.063]
[1744780748921,7.91891035,126.28,126.27,0.063]
[1744780753833,10.84,126.31,126.27,0.063]
[1744780754034,12.3786,126.35,126.3,14.22735812]
[1744780754243,7.91514959,126.34,126.29,14.22735812]
[1744780754622,14.22735812,126.33,126.28,14.22735812]
[1744780755327,14.22735812,126.33,126.28,22.1461349]
[1744780756641,14.22735812,126.32,126.27,54.26005206]
[1744780757338,22.14368312,126.33,126.27,54.26005206]
[1744780758211,22.14368312,126.33,126.28,14.22735812]
[1744780758929,14.22735812,126.31,126.27,0.063]
[1744780759336,14.22735812,126.32,126.27,14.29035812]
[1744780759638,14.22735812,126.31,126.27,0.063]
[1744780760334,14.22735812,126.3,126.27,0.063]
[1744780760858,22.14626847,126.28,126.27,0.063]
[1744780761024,40.79591733,126.28,126.27,0.063]
[1744780761942,22.14626847,126.28,126.27,0.063]
[1744780762138,7.91891035,126.28,126.27,0.063]
[1744780764146,7.91828331,126.29,126.27,0.063]
[1744780764346,18.77769821,126.3,126.27,0.063]
[1744780764545,7.91769821,126.3,126.27,0.063]
[1744780767450,14.22735812,126.32,126.28,14.22735812]
[1744780767654,7.91577614,126.33,126.29,14.22735812]
[1744780768533,22.14313426,126.33,126.28,14.22735812]
[1744780770960,14.22735812,126.31,126.27,0.063]
[1744780772949,7.91765637,126.3,126.27,0.063]
[1744780774138,22.14501449,126.3,126.27,0.063]
[1744780776662,14.22735812,126.29,126.27,0.063]
[1744780777160,7.91879185,126.29,126.27,0.063]
[1744780785353,0.14216157,126.23,126.19,0.063]
[1744780785548,0.14216157,126.23,126.18,0.063]
[1744780785549,18.79181043,126.19,126.18,0.063]
[1744780785752,26.0,126.17,126.16,0.063]
[1744780786050,64.73594891,126.17,126.16,0.063]
[1744780786650,64.59378734,126.17,126.16,0.063]
[1744780786961,19.94413848,126.17,126.16,0.063]
[1744780787167,33.0193656,126.17,126.16,0.063]
[1744780788575,18.76581437,126.17,126.16,0.063]
[1744780789261,33.0193656,126.17,126.16,0.063]
[1744780795769,18.76581437,126.17,126.16,0.063]
[1744780797289,7.92581437,126.17,126.16,0.063]
[1744780798988,22.17873747,126.18,126.16,0.063]
[1744780799193,14.25355123,126.17,126.16,0.063]
[1744780800969,22.1793656,126.17,126.16,0.063]
[1744780801177,22.1793656,126.17,126.16,1e-08]
[1744780801178,60.97117603,126.17,126.16,1e-08]
[1744780809603,71.83117603,126.17,126.16,1e-08]
[1744780813907,46.0,126.15,126.14,0.063]
[1744780814098,46.0,126.15,126.13,0.063]
[1744780814099,44.64964886,126.14,126.13,0.063]
[1744780814302,59.04536166,126.14,126.13,0.063]
[1744780815213,73.29891289,126.14,126.13,0.063]
[1744780815911,81.22661227,126.14,126.13,0.063]
[1744780816505,81.22661227,126.14,126.13,1e-08]
[1744780816702,66.83089947,126.14,126.13,1e-08]
[1744780816891,22.18125061,126.14,126.13,1e-08]
[1744780818009,22.18125061,126.14,126.05,1.584]
[1744780818010,38.64964886,126.11,126.03,20.62215123]
[1744780818314,14.25355123,126.06,126.03,6.3686]
[1744780819394,14.25355123,126.05,126.03,6.3686]
[1744780820111,7.9339892,126.04,126.03,6.3686]
[1744780820913,7.93360893,126.05,126.03,6.3686]
[1744780822325,22.18628167,126.06,126.03,6.3686]
[1744780822819,22.18628167,126.06,126.04,14.25355123]
[1744780822820,7.93273044,126.06,126.04,14.25355123]
[1744780823011,34.08108048,126.09,126.04,14.25355123]
[1744780823521,7.93147208,126.08,126.05,14.25355123]
[1744780823825,7.93084304,126.09,126.05,14.25355123]
[1744780824200,22.18439427,126.09,126.05,14.25355123]
[1744780824908,22.18439427,126.09,126.04,14.25355123]
[1744780825105,14.25355123,126.08,126.03,6.3686]
[1744780825322,14.25355123,126.06,126.03,6.3686]
[1744780825909,14.25355123,126.08,126.03,20.62215123]
[1744780826523,7.93210121,126.07,126.03,20.62215123]
[1744780827023,7.93210121,126.07,126.04,14.25355123]
[1744780827519,14.25355123,126.06,126.03,6.3686]
[1744780827897,22.18565244,126.07,126.03,6.3686]
[1744780828497,14.25355123,126.06,126.03,6.3686]
[1744780828697,7.93210121,126.07,126.03,20.62215123]
[1744780828923,18.79176543,126.08,126.04,14.25355123]
[1744780829326,33.04531666,126.08,126.03,20.62215123]
[1744780830827,14.25355123,126.06,126.03,0.063]
[1744780833519,7.93335977,126.05,126.03,0.063]
[1744780835825,22.186911,126.05,126.03,0.063]
[1744780837323,7.93268622,126.07,126.03,14.31655123]
[1744780837528,7.93268622,126.07,126.03,0.063]
[1744780837823,22.18623745,126.07,126.03,0.063]
[1744780838220,14.25355123,126.05,126.03,0.063]
[1744780839139,9.14001052,126.05,126.03,0.063]
[1744780839838,7.9339892,126.04,126.03,0.063]
[1744780841314,17.07399972,126.04,126.03,0.063]
[1744780841940,7.9339892,126.04,126.03,0.063]
[1744780845035,17.07399972,126.04,126.03,0.063]
[1744780845837,9.14001052,126.05,126.03,0.063]
[1744780846142,36.90456707,126.06,126.03,0.063]
[1744780846645,9.14001052,126.05,126.03,0.063]
[1744780847458,1.633,126.04,126.03,0.063]
[1744780847631,64.64964886,126.03,125.97,0.063]
[1744780847942,7.9358781,126.01,125.97,0.063]
[1744780848143,27.77557336,126.01,125.97,0.063]
[1744780848527,9.14001052,126.0,125.97,0.063]
[1744780848720,27.77557336,126.01,125.97,0.063]
[1744780848915,7.9358781,126.01,125.97,9.20301052]
[1744780849118,17.07588862,126.01,125.97,0.063]
[1744780851039,7.9358781,126.01,125.97,0.063]
[1744780851519,7.9358781,126.01,125.97,9.20301052]
[1744780852140,7.9358781,126.01,125.98,9.14001052]
[1744780852534,7.9358781,126.01,125.97,9.20301052]
[1744780855145,7.9358781,126.01,125.97,0.063]
[1744780855332,7.9358781,126.01,125.97,9.20301052]
[1744780855533,7.9358781,126.01,125.97,0.063]
[1744780855846,7.9358781,126.01,125.97,9.20301052]
[1744780860141,27.77557336,126.01,125.97,0.063]
[1744780860343,18.64964886,126.0,125.97,0.063]
[1744780860647,27.77557336,126.01,125.97,0.063]
[1744780860830,9.14001052,125.99,125.97,0.063]
[1744780861445,9.14001052,125.98,125.97,0.063]
[1744780861648,17.07777841,125.98,125.97,0.063]
[1744780862056,7.93776789,125.98,125.97,0.063]
[1744780862243,17.07777841,125.98,125.97,0.063]
[1744780863630,19.83969526,126.01,125.97,0.063]
[1744780863843,27.77557336,126.01,125.97,9.20301052]
[1744780864034,7.9358781,126.01,125.98,9.14001052]
[1744780864242,7.9358781,126.01,125.97,9.20301052]
[1744780864846,7.9358781,126.01,125.98,9.14001052]
[1744780865046,7.9358781,126.01,125.97,9.20301052]
[1744780865242,46.42522222,126.01,125.97,0.063]
[1744780865442,9.14001052,125.98,125.97,0.063]
[1744780865943,17.07777841,125.98,125.97,0.063]
[1744780867135,7.93776789,125.98,125.97,0.063]
[1744780867558,17.07777841,125.98,125.97,0.063]
[1744780868067,7.93776789,125.98,125.97,0.063]
[1744780870148,7.93776789,125.98,125.91,0.063]
[1744780870149,18.64964886,125.97,125.91,0.063]
[1744780870467,9.14001052,125.94,125.91,0.063]
[1744780870671,9.14001052,125.93,125.91,0.063]
[1744780871680,26.0,125.96,125.91,9.20301052]
[1744780871846,35.14001052,125.96,125.91,0.063]
[1744780872052,46.44066044,125.94,125.91,0.063]
[1744780872367,9.14001052,125.92,125.91,0.063]
[1744780874661,17.08156071,125.92,125.91,0.063]
[1744780875272,35.73120957,125.92,125.91,0.063]
[1744780875866,35.87337114,125.92,125.91,1e-08]
[1744780876174,18.64964886,125.9,125.84,0.063]
[1744780876363,9.14001052,125.87,125.84,0.063]
[1744780876568,7.94533608,125.86,125.84,0.063]
[1744780877970,17.0853466,125.86,125.84,0.063]
[1744780878160,9.14001052,125.85,125.84,0.063]
[1744780878562,17.08597794,125.85,125.84,0.063]
[1744780879978,7.94596742,125.85,125.84,0.063]
[1744780882267,1.6633,125.9,125.84,9.20301052]
[1744780882462,7.94344268,125.89,125.85,6.1149]
[1744780882663,7.94344268,125.89,125.86,9.14001052]
[1744780882868,7.94281175,125.9,125.86,9.14001052]
[1744780884282,7.94155019,125.92,125.88,9.14001052]
[1744780885164,7.94155019,125.92,125.88,14.3090095]
[1744780885682,14.3090095,125.95,125.9,14.3090095]
[1744780885868,14.3090095,125.96,125.91,14.3090095]
[1744780886191,14.3090095,125.95,125.9,14.3090095]
[1744780886764,14.3090095,125.96,125.91,14.3090095]
[1744780886975,7.93902826,125.96,125.92,14.3090095]
[1744780887287,22.24803776,125.96,125.91,20.4796095]
[1744780888487,7.93902826,125.96,125.91,20.4796095]
[1744780888784,14.3090095,125.93,125.88,6.4794]
[1744780888982,14.3090095,125.91,125.88,6.4794]
[1744780889183,14.3090095,125.9,125.85,15.9377095]
[1744780889989,14.3090095,125.9,125.85,1.6287]
[1744780890189,14.3090095,125.9,125.85,15.9377095]
[1744780890788,7.94344268,125.89,125.85,15.9377095]
[1744780891193,22.25245218,125.89,125.85,1.6287]
[1744780892121,27.8020494,125.89,125.84,0.063]
[1744780892391,32.95865836,125.85,125.84,0.063]
[1744780893070,18.64964886,125.84,125.8,2.8971485]
[1744780893276,14.3090095,125.81,125.8,2.8971485]
[1744780894292,22.25750326,125.81,125.8,2.8971485]
[1744780895691,26.0,125.76,125.73,0.063]
[1744780895883,14.3090095,125.75,125.73,0.063]
[1744780896088,22.26192822,125.74,125.73,0.063]
[1744780897395,7.95291872,125.74,125.73,0.063]
[1744780897602,22.26192822,125.74,125.69,13.8720095]
[1744780897819,22.26192822,125.74,125.67,50.5213]
[1744780897820,14.3090095,125.73,125.67,50.5213]
[1744780897989,14.3090095,125.73,125.68,14.3090095]
[1744780898189,22.2631934,125.72,125.67,24.5213]
[1744780898485,22.2631934,125.72,125.67,6.4502]
[1744780898991,14.3090095,125.7,125.67,0.063]
[1744780899199,14.3090095,125.69,125.67,0.063]
[1744780900014,14.3090095,125.68,125.67,0.063]
[1744780900205,22.26572496,125.68,125.67,0.063]
[1744780900505,52.60636432,125.68,125.67,1e-08]
[1744780900696,26.0,125.65,125.55,17.51853066]
[1744780900891,18.64964886,125.64,125.55,9.5540485]
[1744780901429,18.64964886,125.64,125.55,17.51887828]
[1744780901630,49.00640569,125.65,125.55,43.51887828]
[1744780901913,18.64964886,125.64,125.55,2.8971485]